bitfinex-derivatives/quotes_BTCF0:USTF0_20241009
["timestamp","ask_amount","ask_price","bid_price","bid_amount"]
[1728517849648,1.62762,60716.0,60715.0,0.05834875]
[1728517849852,1.62762,60716.0,60711.0,0.13562714]
[1728517850051,0.563209,60712.0,60711.0,0.13182714]
[1728517850248,1.187369,60712.0,60711.0,0.13182714]
[1728517850452,0.082416,60707.0,60706.0,0.15210554]
[1728517850753,0.663216,60707.0,60706.0,0.14830554]
[1728517852061,0.663216,60707.0,60706.0,0.15030554]
[1728517852349,0.663216,60707.0,60706.0,0.15530554]
[1728517853648,0.663216,60707.0,60706.0,0.15030554]
[1728517855452,0.543216,60707.0,60706.0,0.15030554]
[1728517857850,0.543216,60707.0,60706.0,0.17858613]
[1728517861460,0.4608,60707.0,60706.0,0.26100313]
[1728517861959,0.4608,60707.0,60706.0,0.35240313]
[1728517865856,0.543216,60707.0,60706.0,0.26998613]
[1728517867453,0.543216,60707.0,60706.0,0.12168059]
[1728517869956,0.182416,60707.0,60706.0,0.12168059]
[1728517870861,0.182416,60707.0,60706.0,0.0469]
[1728517873472,0.182416,60707.0,60706.0,0.002]
[1728517873661,0.182416,60707.0,60706.0,0.05120269]
[1728517873662,0.302416,60707.0,60706.0,0.05120269]
[1728517873968,0.302416,60707.0,60706.0,0.002]
[1728517874466,1.46996865,60707.0,60706.0,0.002]
[1728517875158,0.082421,60703.0,60702.0,0.0038]
[1728517875364,0.082421,60703.0,60700.0,0.04920269]
[1728517875365,0.082424,60701.0,60700.0,0.04920269]
[1728517875565,0.182424,60701.0,60700.0,0.04920269]
[1728517876471,1.19424,60701.0,60699.0,0.04938692]
[1728517876679,0.082435,60693.0,60692.0,0.12758018]
[1728517876971,0.673235,60693.0,60692.0,0.09840551]
[1728517877163,1.767515,60693.0,60692.0,0.09840551]
[1728517878172,1.767515,60693.0,60692.0,0.005]
[1728517878470,1.837515,60693.0,60692.0,0.005]
[1728517881466,1.26690107,60693.0,60692.0,0.005]
[1728517881665,1.86690107,60693.0,60692.0,0.005]
[1728517882772,1.26690107,60693.0,60692.0,0.005]
[1728517883367,0.77262107,60693.0,60692.0,0.005]
[1728517885075,0.743235,60693.0,60692.0,0.005]
[1728517885479,0.553235,60693.0,60692.0,0.005]
[1728517885681,0.553235,60693.0,60692.0,0.087444]
[1728517887069,0.553235,60693.0,60692.0,0.005]
[1728517890678,0.553235,60693.0,60692.0,0.03077651]
[1728517890981,0.743235,60693.0,60692.0,0.03077651]
[1728517893679,0.743235,60693.0,60692.0,0.03077761]
[1728517893879,0.743235,60693.0,60692.0,0.005]
[1728517894187,0.743235,60693.0,60692.0,0.03077758]
[1728517894482,0.743235,60693.0,60692.0,0.02977812]
[1728517894875,0.743235,60693.0,60692.0,0.001]
[1728517895082,0.743235,60693.0,60692.0,0.0287781]
[1728517896184,0.743235,60693.0,60692.0,0.02877764]
[1728517897085,0.743235,60693.0,60692.0,0.003]
[1728517899474,0.743235,60693.0,60692.0,0.02877765]
[1728517901186,0.743235,60693.0,60692.0,0.003]
[1728517902778,0.082453,60686.0,60684.0,0.0115]
[1728517903088,0.082453,60686.0,60681.0,0.20036673]
[1728517903089,0.082458,60682.0,60681.0,0.1346]
[1728517903285,0.753258,60682.0,60681.0,0.0462]
[1728517903486,0.082459,60681.0,60676.0,0.09872493]
[1728517903678,0.633265,60677.0,60676.0,0.09872493]
[1728517903883,0.743265,60677.0,60676.0,0.09872493]
[1728517905184,0.744265,60677.0,60676.0,0.11272493]
[1728517905686,0.745265,60677.0,60676.0,0.12272493]
[1728517907489,0.745265,60677.0,60676.0,0.024]
[1728517907992,1.106065,60677.0,60676.0,0.024]
[1728517908495,1.106065,60677.0,60676.0,0.04978432]
[1728517909588,1.106065,60677.0,60676.0,0.04578432]
[1728517909887,1.106065,60677.0,60676.0,0.02]
[1728517911282,1.0266,60677.0,60673.0,0.0927]
[1728517911583,0.082469,60674.0,60673.0,0.0927]
[1728517911779,0.212469,60674.0,60673.0,0.0927]
[1728517911986,0.573269,60674.0,60673.0,0.0927]
[1728517912589,0.573269,60674.0,60673.0,0.0937]
[1728517914883,0.577269,60674.0,60673.0,0.0927]
[1728517915089,0.580269,60674.0,60673.0,0.0927]
[1728517915497,0.573269,60674.0,60673.0,0.0947]
[1728517915687,0.573269,60674.0,60673.0,0.0957]
[1728517916188,0.573269,60674.0,60673.0,0.0947]
[1728517916789,0.573269,60674.0,60673.0,0.0937]
[1728517917891,0.4908,60674.0,60673.0,0.0927]
[1728517919098,0.4918,60674.0,60673.0,0.11948408]
[1728517919403,0.4918,60674.0,60673.0,0.20195408]
[1728517919793,0.4908,60674.0,60673.0,0.20395408]
[1728517920701,0.4908,60674.0,60673.0,0.23210091]
[1728517920897,0.4908,60674.0,60673.0,0.23510091]
[1728517921495,0.4908,60674.0,60673.0,0.23210091]
[1728517921692,0.4908,60674.0,60673.0,0.23410091]
[1728517921897,0.4908,60674.0,60673.0,0.23210091]
[1728517922086,0.4908,60674.0,60673.0,0.23410091]
[1728517922693,0.4908,60674.0,60673.0,0.23310091]
[1728517923396,0.4908,60674.0,60673.0,0.12148408]
[1728517923595,0.573269,60674.0,60673.0,0.12148408]
[1728517924101,0.4908,60674.0,60673.0,0.12148408]
[1728517924296,0.4908,60674.0,60673.0,0.1214841]
[1728517924803,0.4908,60674.0,60673.0,0.15116562]
[1728517927597,0.4908,60674.0,60673.0,0.12538152]
[1728517927798,0.4908,60674.0,60673.0,0.1511656]
[1728517929608,0.4908,60674.0,60673.0,0.19242013]
[1728517930399,0.13,60674.0,60673.0,0.19242013]
[1728517930600,0.4908,60674.0,60673.0,0.19242013]
[1728517930906,0.13,60674.0,60673.0,0.19242013]
[1728517931104,0.4908,60674.0,60673.0,0.19242013]
[1728517931406,0.573269,60674.0,60673.0,0.16273861]
[1728517932201,0.573269,60674.0,60673.0,0.25229964]
[1728517932402,0.693269,60674.0,60673.0,0.25229964]
[1728517932603,0.693269,60674.0,60673.0,0.12148408]
[1728517933102,0.693269,60674.0,60673.0,0.16273877]
[1728517933492,0.693269,60674.0,60673.0,0.24522246]
[1728517934499,0.573269,60674.0,60673.0,0.24522246]
[1728517934899,0.573269,60674.0,60673.0,0.25231831]
[1728517935198,0.573269,60674.0,60673.0,0.21106362]
[1728517936299,0.573269,60674.0,60673.0,0.25231816]
[1728517936909,0.573269,60674.0,60673.0,0.33478816]
[1728517938309,0.573269,60674.0,60673.0,0.26773996]
[1728517938909,0.573269,60674.0,60673.0,0.33477857]
[1728517941807,0.573269,60674.0,60673.0,0.25230857]
[1728517942002,0.573269,60674.0,60673.0,0.18526996]
[1728517942202,0.573269,60674.0,60673.0,0.25230858]
[1728517944613,0.573269,60674.0,60673.0,0.25234478]
[1728517946308,0.573269,60674.0,60673.0,0.21109024]
[1728517946512,0.573269,60674.0,60673.0,0.11839024]
[1728517947414,0.573269,60674.0,60673.0,0.20088641]
[1728517948709,0.573269,60674.0,60673.0,0.11839024]
[1728517949014,0.573269,60674.0,60673.0,0.02878408]
[1728517950322,0.573269,60674.0,60673.0,0.11125408]
[1728517957115,0.573269,60674.0,60673.0,0.08547]
[1728517957320,0.573269,60674.0,60673.0,0.0287838]
[1728517959730,0.573269,60674.0,60673.0,0.0277838]
[1728517959929,0.578269,60674.0,60673.0,0.0277838]
[1728517960929,0.582269,60674.0,60673.0,0.0257838]
[1728517961335,0.577269,60674.0,60673.0,0.0257838]
[1728517961537,0.581269,60674.0,60673.0,0.0257838]
[1728517962135,0.577269,60674.0,60673.0,0.0257838]
[1728517962340,0.582269,60674.0,60673.0,0.0257838]
[1728517964042,0.582269,60674.0,60673.0,0.08968546]
[1728517964244,0.582269,60674.0,60673.0,0.1154698]
[1728517967538,0.702269,60674.0,60673.0,0.08968546]
[1728517967748,0.702269,60674.0,60673.0,0.1154698]
[1728517969336,0.341469,60674.0,60673.0,0.1154698]
[1728517969538,0.702269,60674.0,60673.0,0.1154698]
[1728517970441,0.702269,60674.0,60673.0,0.15672458]
[1728517971236,0.702269,60674.0,60673.0,0.11546972]
[1728517971437,0.702269,60674.0,60673.0,0.15672454]
[1728517971438,0.341469,60674.0,60673.0,0.15672454]
[1728517971644,0.702269,60674.0,60673.0,0.11546972]
[1728517972352,0.341469,60674.0,60673.0,0.11546972]
[1728517972545,0.702269,60674.0,60673.0,0.11546972]
[1728517973836,0.702269,60674.0,60673.0,0.02578426]
[1728517974041,0.702269,60674.0,60673.0,0.11549554]
[1728517977056,0.702269,60674.0,60673.0,0.02578426]
[1728517980357,0.341469,60674.0,60673.0,0.02578426]
[1728517980557,0.702269,60674.0,60673.0,0.02578426]
[1728517981860,0.702269,60674.0,60673.0,0.02578427]
[1728517983459,0.082477,60668.0,60667.0,0.0115]
[1728517983662,0.683277,60668.0,60667.0,0.02578733]
[1728517984356,0.08248,60666.0,60665.0,0.02921465]
[1728517984560,0.19248,60666.0,60664.0,0.082482]
[1728517984860,0.12,60665.0,60664.0,0.082482]
[1728517985158,0.12,60665.0,60664.0,0.13781964]
[1728517985159,0.22,60665.0,60664.0,0.13781964]
[1728517985859,0.302481,60665.0,60664.0,0.10826933]
[1728517986047,0.302481,60665.0,60664.0,0.02578733]
[1728517986960,0.302481,60665.0,60664.0,0.02978733]
[1728517987755,0.302481,60665.0,60664.0,0.20220431]
[1728517988157,0.302481,60665.0,60664.0,0.11220828]
[1728517988363,0.302481,60665.0,60664.0,0.20220884]
[1728517988661,0.302481,60665.0,60664.0,0.02978733]
[1728517989059,0.182481,60665.0,60664.0,0.11227033]
[1728517989253,0.182481,60665.0,60664.0,0.2846576]
[1728517989453,0.1,60665.0,60664.0,0.23595163]
[1728517990450,0.1,60665.0,60664.0,0.15353068]
[1728517991468,0.1,60665.0,60664.0,0.24352422]
[1728517991854,0.1,60665.0,60664.0,0.24342555]
[1728517992361,0.1,60665.0,60664.0,0.32580805]
[1728517992663,0.1,60665.0,60664.0,0.23591318]
[1728517996166,0.4608,60665.0,60664.0,0.23591318]
[1728517996868,0.4608,60665.0,60664.0,0.24343118]
[1728518002771,0.543281,60665.0,60664.0,0.24343118]
[1728518007272,0.543281,60665.0,60664.0,0.07104768]
[1728518007472,0.543281,60665.0,60664.0,0.07105114]
[1728518007661,0.543281,60665.0,60664.0,0.004]
[1728518008768,0.544281,60665.0,60664.0,0.004]
[1728518008975,0.082484,60663.0,60662.0,0.08242298]
[1728518009177,0.683284,60663.0,60662.0,0.06705619]
[1728518009479,0.683284,60663.0,60662.0,0.02579084]
[1728518009975,0.683284,60663.0,60662.0,0.02979084]
[1728518010279,0.683284,60663.0,60662.0,0.03179084]
[1728518010479,0.683284,60663.0,60662.0,0.07305596]
[1728518010872,0.322484,60663.0,60662.0,0.07305596]
[1728518011067,1.044084,60663.0,60662.0,0.07305596]
[1728518011667,1.044084,60663.0,60662.0,0.08121579]
[1728518013377,0.322484,60663.0,60662.0,0.08121579]
[1728518013575,1.044084,60663.0,60662.0,0.08121579]
[1728518013882,1.044084,60663.0,60662.0,0.03179084]
[1728518015376,1.044084,60663.0,60662.0,0.11427584]
[1728518017071,1.044084,60663.0,60662.0,0.15553909]
[1728518017270,1.044084,60663.0,60662.0,0.088485]
[1728518017479,1.044084,60663.0,60662.0,0.15553778]
[1728518017877,1.044084,60663.0,60662.0,0.11427453]
[1728518018076,1.044084,60663.0,60662.0,0.15553778]
[1728518018582,1.044084,60663.0,60662.0,0.12974825]
[1728518018788,1.044084,60663.0,60662.0,0.15553778]
[1728518019281,1.044084,60663.0,60662.0,0.07305278]
[1728518020585,1.044084,60663.0,60662.0,0.03178953]
[1728518021080,1.044084,60663.0,60662.0,0.006]
[1728518021283,1.044084,60663.0,60662.0,0.03178955]
[1728518021480,1.044084,60663.0,60662.0,0.07305284]
[1728518022375,0.924084,60663.0,60662.0,0.07305284]
[1728518023079,0.924084,60663.0,60662.0,0.27553784]
[1728518023281,0.8416,60663.0,60662.0,0.27553784]
[1728518023476,0.8416,60663.0,60662.0,0.23427455]
[1728518024490,0.8416,60663.0,60662.0,0.208485]
[1728518024785,0.8416,60663.0,60662.0,0.23427433]
[1728518025484,0.924084,60663.0,60662.0,0.23427433]
[1728518031885,0.924084,60663.0,60662.0,0.2342743]
[1728518034886,0.924084,60663.0,60662.0,0.1142743]
[1728518039293,0.8416,60663.0,60662.0,0.2342743]
[1728518039500,0.12,60663.0,60662.0,0.2342743]
[1728518041799,0.12,60663.0,60662.0,0.1142743]
[1728518043004,0.12,60663.0,60662.0,0.20409506]
[1728518043196,0.322484,60663.0,60662.0,0.22050204]
[1728518043495,0.683284,60663.0,60662.0,0.20402293]
[1728518043702,0.683284,60663.0,60662.0,0.11420217]
[1728518043893,0.683284,60663.0,60662.0,0.0317893]
[1728518044795,0.683284,60663.0,60662.0,0.07305276]
[1728518044990,1.044084,60663.0,60662.0,0.07305276]
[1728518045305,1.044084,60663.0,60662.0,0.07305312]
[1728518050006,1.044084,60663.0,60662.0,0.006]
[1728518050209,1.044084,60663.0,60662.0,0.07305313]
[1728518050901,0.924084,60663.0,60662.0,0.07305313]
[1728518051107,1.044084,60663.0,60662.0,0.07305313]
[1728518052999,0.322484,60663.0,60662.0,0.07305313]
[1728518053203,1.044084,60663.0,60662.0,0.07305313]
[1728518055707,1.044084,60663.0,60662.0,0.07305107]
[1728518056403,0.322484,60663.0,60662.0,0.07305107]
[1728518056605,0.683284,60663.0,60662.0,0.07305107]
[1728518058315,0.322484,60663.0,60662.0,0.07305107]
[1728518058617,0.683284,60663.0,60662.0,0.07305107]
[1728518059611,0.683284,60663.0,60662.0,0.03178887]
[1728518060312,0.683284,60663.0,60662.0,0.03178882]
[1728518060520,0.322484,60663.0,60662.0,0.03178882]
[1728518060815,0.683284,60663.0,60662.0,0.07305094]
[1728518061404,0.683284,60663.0,60662.0,0.24556477]
[1728518061610,0.4808,60663.0,60662.0,0.40678609]
[1728518061811,0.4808,60663.0,60662.0,0.32437322]
[1728518062118,0.4808,60663.0,60662.0,0.42328932]
[1728518062314,0.4808,60663.0,60662.0,0.32437322]
[1728518063615,0.4808,60663.0,60662.0,0.42327136]
[1728518063923,0.4808,60663.0,60662.0,0.32437322]
[1728518064222,0.4808,60663.0,60662.0,0.42327136]
[1728518064916,0.4808,60663.0,60662.0,0.32437322]
[1728518068219,0.4808,60663.0,60662.0,0.42327136]
[1728518068520,0.4808,60663.0,60662.0,0.32437322]
[1728518071028,0.4808,60663.0,60662.0,0.2985844]
[1728518071216,0.4808,60663.0,60662.0,0.39748254]
[1728518072223,0.4808,60663.0,60662.0,0.42326954]
[1728518072413,0.563284,60663.0,60662.0,0.42326954]
[1728518073128,0.563284,60663.0,60662.0,0.3243714]
[1728518073717,0.202484,60663.0,60662.0,0.3243714]
[1728518074217,0.202484,60663.0,60662.0,0.42325886]
[1728518077416,0.202484,60663.0,60662.0,0.39747186]
[1728518077621,0.202484,60663.0,60662.0,0.42325895]
[1728518081229,0.202484,60663.0,60662.0,0.39747186]
[1728518081833,0.202484,60663.0,60662.0,0.42325895]
[1728518082133,0.202484,60663.0,60662.0,0.32437149]
[1728518083331,0.202484,60663.0,60662.0,0.32442612]
[1728518087327,0.202484,60663.0,60662.0,0.29863903]
[1728518088327,0.202484,60663.0,60662.0,0.32442612]
[1728518089833,0.202484,60663.0,60662.0,0.43194391]
[1728518090324,0.202484,60663.0,60662.0,0.32442612]
[1728518090523,0.202484,60663.0,60662.0,0.22092299]
[1728518090727,0.322484,60663.0,60662.0,0.22092299]
[1728518091132,0.322484,60663.0,60662.0,0.12194112]
[1728518092430,0.202484,60663.0,60662.0,0.09615403]
[1728518092934,0.202484,60663.0,60662.0,0.05757668]
[1728518095631,0.202484,60663.0,60662.0,0.14786592]
[1728518096338,0.202484,60663.0,60662.0,0.14786593]
[1728518098037,0.202484,60663.0,60662.0,0.12207759]
[1728518099743,0.202484,60663.0,60662.0,0.09628924]
[1728518099935,0.202484,60663.0,60662.0,0.12207759]
[1728518101037,0.563284,60663.0,60662.0,0.12207759]
[1728518101840,0.563284,60663.0,60662.0,0.03178835]
[1728518103236,0.563284,60663.0,60662.0,0.12208614]
[1728518105942,0.683284,60663.0,60662.0,0.12208614]
[1728518109453,0.683284,60663.0,60662.0,0.09629779]
[1728518109653,0.683284,60663.0,60662.0,0.12208616]
[1728518110643,0.322484,60663.0,60662.0,0.12208616]
[1728518110844,0.683284,60663.0,60662.0,0.12208616]
[1728518111449,1.777804,60663.0,60662.0,0.12208616]
[1728518111655,1.777804,60663.0,60662.0,0.006]
[1728518111850,1.874704,60663.0,60662.0,0.006]
[1728518112945,1.874704,60663.0,60662.0,0.004]
[1728518112946,1.876704,60663.0,60662.0,0.004]
[1728518113344,1.922304,60663.0,60662.0,0.004]
[1728518113754,0.082487,60661.0,60660.0,0.0494926]
[1728518113952,0.202487,60661.0,60660.0,0.0494926]
[1728518114152,1.297047,60661.0,60660.0,0.0494926]
[1728518114972,0.72,60661.0,60654.0,0.0038]
[1728518115271,0.0825,60651.0,60650.0,0.0038]
[1728518115471,0.082504,60648.0,60647.0,0.09896501]
[1728518115667,0.322504,60648.0,60647.0,0.09896501]
[1728518117363,0.24,60648.0,60645.0,0.13067601]
[1728518117567,0.082506,60647.0,60645.0,0.13067601]
[1728518117766,0.202506,60647.0,60645.0,0.13067601]
[1728518118570,0.203506,60647.0,60646.0,0.0546]
[1728518119476,0.204506,60647.0,60646.0,0.0546]
[1728518125269,0.204506,60647.0,60646.0,0.008]
[1728518126671,0.204506,60647.0,60646.0,0.011]
[1728518127079,0.203506,60647.0,60646.0,0.011]
[1728518127269,0.204506,60647.0,60646.0,0.008]
[1728518127881,0.203506,60647.0,60646.0,0.002]
[1728518128771,0.082508,60645.0,60644.0,0.0486]
[1728518128971,0.563308,60645.0,60644.0,0.0486]
[1728518130075,0.563308,60645.0,60644.0,0.0496]
[1728518135485,0.563308,60645.0,60644.0,0.0957]
[1728518140885,0.563308,60645.0,60644.0,0.1433]
[1728518141079,0.563308,60645.0,60644.0,0.2334315]
[1728518141480,0.563308,60645.0,60644.0,0.22574102]
[1728518142179,0.563308,60645.0,60644.0,0.23343228]
[1728518144589,0.563308,60645.0,60644.0,0.25922842]
[1728518152689,0.4808,60645.0,60644.0,0.34173842]
[1728518152887,0.3329,60645.0,60644.0,0.31594228]
[1728518153090,0.2587,60645.0,60644.0,0.31594228]
[1728518153596,0.2587,60645.0,60644.0,0.34173723]
[1728518154598,0.2587,60645.0,60644.0,0.31594228]
[1728518154891,0.2587,60645.0,60644.0,0.34173744]
[1728518155690,0.461208,60645.0,60644.0,0.16552744]
[1728518155891,0.461208,60645.0,60644.0,0.11692744]
[1728518157091,0.341208,60645.0,60644.0,0.10930516]
[1728518157997,0.461208,60645.0,60644.0,0.08351]
[1728518158298,0.461208,60645.0,60644.0,0.10930596]
[1728518161791,0.341208,60645.0,60644.0,0.10930596]
[1728518161994,0.461208,60645.0,60644.0,0.10930596]
[1728518167300,0.461208,60645.0,60644.0,0.08351]
[1728518167498,0.461208,60645.0,60644.0,0.10930596]
[1728518169105,0.461208,60645.0,60644.0,0.29857193]
[1728518169307,0.341208,60645.0,60644.0,0.29857193]
[1728518170600,0.202508,60645.0,60644.0,0.29857193]
[1728518174009,0.202508,60645.0,60644.0,0.19955479]
[1728518174210,0.202508,60645.0,60644.0,0.17375883]
[1728518174520,0.202508,60645.0,60644.0,0.19955415]
[1728518175816,0.202508,60645.0,60644.0,0.29856913]
[1728518177708,0.202508,60645.0,60644.0,0.29856915]
[1728518180421,0.202508,60645.0,60644.0,0.19955417]
[1728518184625,0.202508,60645.0,60644.0,0.19955447]
[1728518187434,0.202508,60645.0,60644.0,0.10930564]
[1728518190331,0.12,60645.0,60644.0,0.22930564]
[1728518191433,0.12,60645.0,60644.0,0.2293052]
[1728518196245,0.12,60645.0,60644.0,0.42699406]
[1728518198243,0.12,60645.0,60644.0,0.42699412]
[1728518201743,0.12,60645.0,60644.0,0.41851723]
[1728518202150,0.12,60645.0,60644.0,0.31949336]
[1728518203335,0.0038,60653.0,60644.0,1.73050561]
[1728518203539,0.0038,60653.0,60652.0,0.202499]
[1728518203540,0.07,60653.0,60652.0,0.202499]
[1728518203840,0.07,60653.0,60652.0,0.42574188]
[1728518204041,0.07,60653.0,60652.0,0.31848236]
[1728518204452,0.078,60653.0,60652.0,0.31848236]
[1728518205042,0.078,60653.0,60652.0,0.41742088]
[1728518205242,0.170498,60653.0,60652.0,0.39262562]
[1728518205551,0.170498,60653.0,60652.0,0.41841768]
[1728518209350,0.170498,60653.0,60652.0,0.44808424]
[1728518209351,0.088,60653.0,60652.0,0.44808424]
[1728518210137,0.088,60653.0,60652.0,0.34914572]
[1728518211953,0.088,60653.0,60652.0,0.3491443]
[1728518213444,0.088,60653.0,60652.0,0.44801857]
[1728518214745,0.088,60653.0,60652.0,0.2589562]
[1728518215258,0.0038,60661.0,60652.0,1.3535962]
[1728518215456,0.12,60661.0,60660.0,0.12]
[1728518215651,0.12,60661.0,60660.0,0.22827864]
[1728518216166,0.202487,60661.0,60660.0,0.10827864]
[1728518216366,0.216487,60661.0,60660.0,0.10827864]
[1728518216852,0.216487,60661.0,60660.0,0.19060066]
[1728518217048,0.216487,60661.0,60660.0,0.28005763]
[1728518217249,0.214487,60661.0,60660.0,0.28005763]
[1728518217456,0.223487,60661.0,60660.0,0.28005763]
[1728518217860,0.214487,60661.0,60660.0,0.28005763]
[1728518218158,0.223487,60661.0,60660.0,0.19160066]
[1728518218548,0.223487,60661.0,60660.0,0.16581002]
[1728518218753,0.223487,60661.0,60660.0,0.19159832]
[1728518219059,0.223487,60661.0,60660.0,0.1092763]
[1728518221454,0.223487,60661.0,60660.0,0.083488]
[1728518221660,0.223487,60661.0,60660.0,0.1092763]
[1728518222256,0.141,60661.0,60660.0,0.1092763]
[1728518222562,0.141,60661.0,60660.0,0.25883826]
[1728518226460,0.141,60661.0,60660.0,0.13883826]
[1728518227653,0.141,60661.0,60660.0,0.11304996]
[1728518228061,0.141,60661.0,60660.0,0.13883758]
[1728518228561,0.141,60661.0,60660.0,0.25883758]
[1728518230962,0.141,60661.0,60660.0,0.23304996]
[1728518231160,0.141,60661.0,60660.0,0.25883714]
[1728518231762,0.141,60661.0,60660.0,0.43868541]
[1728518231961,0.141,60661.0,60660.0,0.43768541]
[1728518232166,0.0038,60669.0,60660.0,0.43768541]
[1728518232367,0.12,60669.0,60668.0,0.563277]
[1728518232569,0.12,60669.0,60668.0,0.58906418]
[1728518233371,0.129,60669.0,60668.0,0.58906418]
[1728518233863,0.136,60669.0,60668.0,0.59006418]
[1728518234870,0.127,60669.0,60668.0,0.59006418]
[1728518235069,0.136,60669.0,60668.0,0.59106418]
[1728518237064,0.136,60669.0,60668.0,0.62007711]
[1728518237467,0.218476,60669.0,60668.0,0.62007711]
[1728518237977,0.218476,60669.0,60668.0,0.50007408]
[1728518238172,0.338476,60669.0,60668.0,0.50007408]
[1728518238572,0.699276,60669.0,60668.0,0.05679708]
[1728518238774,0.699276,60669.0,60668.0,0.03101293]
[1728518242384,0.699276,60669.0,60668.0,0.05679913]
[1728518243387,0.699276,60669.0,60668.0,0.0277862]
[1728518243590,0.699276,60669.0,60668.0,0.002]
[1728518246390,0.699276,60669.0,60668.0,0.02778635]
[1728518246885,0.338476,60669.0,60668.0,0.02778635]
[1728518247190,0.699276,60669.0,60668.0,0.002]
[1728518248786,0.699276,60669.0,60668.0,0.02778732]
[1728518254801,0.699276,60669.0,60668.0,0.002]
[1728518255185,0.699276,60669.0,60668.0,0.02778811]
[1728518257395,1.299276,60669.0,60662.0,0.11034561]
[1728518257600,0.082489,60659.0,60658.0,0.0038]
[1728518257895,0.082494,60656.0,60655.0,0.08237134]
[1728518258085,0.302494,60656.0,60655.0,0.17218106]
[1728518258290,0.302494,60656.0,60655.0,0.08237134]
[1728518258494,0.082495,60655.0,60654.0,0.08237134]
[1728518258689,0.312495,60655.0,60654.0,0.17097016]
[1728518259193,0.312495,60655.0,60654.0,0.08859882]
[1728518259392,0.312495,60655.0,60654.0,0.1709542]
[1728518260098,0.313495,60655.0,60654.0,0.2604502]
[1728518260402,0.193495,60655.0,60654.0,0.17585138]
[1728518260995,0.193495,60655.0,60654.0,0.17185138]
[1728518261798,0.193495,60655.0,60654.0,0.16585138]
[1728518261799,0.192495,60655.0,60654.0,0.16585138]
[1728518262296,0.192495,60655.0,60654.0,0.083496]
[1728518264798,0.192495,60655.0,60654.0,0.001]
[1728518266500,0.553295,60655.0,60654.0,0.001]
[1728518268407,0.553295,60655.0,60654.0,0.083496]
[1728518269412,0.553295,60655.0,60654.0,0.10928709]
[1728518272014,0.4708,60655.0,60654.0,0.10928709]
[1728518272310,0.4708,60655.0,60654.0,0.19160125]
[1728518272506,0.4708,60655.0,60654.0,0.28016591]
[1728518273302,0.4708,60655.0,60654.0,0.19785175]
[1728518273503,0.11,60655.0,60654.0,0.19785175]
[1728518273706,0.11,60655.0,60654.0,0.55865175]
[1728518284120,0.11,60655.0,60654.0,0.55864956]
[1728518285223,0.11,60655.0,60654.0,0.19784956]
[1728518285420,0.11,60655.0,60654.0,0.55864956]
[1728518287020,0.11,60655.0,60654.0,0.4700849]
[1728518287219,0.11,60655.0,60654.0,0.1092849]
[1728518287527,0.11,60655.0,60654.0,0.4700849]
[1728518292937,0.11,60655.0,60654.0,0.47008473]
[1728518296636,0.11,60655.0,60654.0,0.59008473]
[1728518296836,0.192495,60655.0,60654.0,0.59008473]
[1728518297134,0.192495,60655.0,60654.0,0.47008473]
[1728518297337,0.192495,60655.0,60654.0,0.444296]
[1728518297638,0.192495,60655.0,60654.0,0.47008487]
[1728518297841,0.192495,60655.0,60654.0,0.10928487]
[1728518298033,0.192495,60655.0,60654.0,0.47008487]
[1728518299043,0.11,60655.0,60654.0,0.59008487]
[1728518301144,0.11,60655.0,60654.0,0.78434026]
[1728518302953,0.11,60655.0,60654.0,0.42354026]
[1728518304046,0.11,60655.0,60654.0,0.75855139]
[1728518304246,0.11,60655.0,60654.0,0.78434038]
[1728518304449,0.11,60655.0,60654.0,0.42354038]
[1728518304650,0.11,60655.0,60654.0,0.78434038]
[1728518305248,0.11,60655.0,60654.0,0.58184438]
[1728518305449,0.192495,60655.0,60654.0,0.22104438]
[1728518305857,0.192495,60655.0,60654.0,0.1154107]
[1728518307259,0.192495,60655.0,60654.0,0.21439168]
[1728518307260,0.193495,60655.0,60654.0,0.21439168]
[1728518308055,0.194495,60655.0,60654.0,0.21439168]
[1728518308253,0.194495,60655.0,60654.0,0.21339168]
[1728518308449,0.196495,60655.0,60654.0,0.21339168]
[1728518308857,0.196495,60655.0,60654.0,0.1144107]
[1728518315557,0.195495,60655.0,60654.0,0.1144107]
[1728518317266,0.194495,60655.0,60654.0,0.1144107]
[1728518318667,0.194495,60655.0,60654.0,0.08862171]
[1728518318959,0.194495,60655.0,60654.0,0.11441291]
[1728518320164,0.203525,60655.0,60654.0,0.11441291]
[1728518320964,0.203525,60655.0,60654.0,0.11441283]
[1728518323664,0.203525,60655.0,60654.0,0.02579112]
[1728518327369,0.203525,60655.0,60653.0,0.09898098]
[1728518327672,0.082496,60654.0,60653.0,0.09898098]
[1728518327975,0.082499,60652.0,60651.0,0.02932781]
[1728518328167,0.082501,60651.0,60649.0,0.082502]
[1728518328363,0.192501,60651.0,60650.0,0.02579112]
[1728518330679,0.192501,60651.0,60650.0,0.22034791]
[1728518330880,0.192501,60651.0,60650.0,0.19455679]
[1728518331079,0.192501,60651.0,60650.0,0.22034791]
[1728518331273,0.192501,60651.0,60650.0,0.22434791]
[1728518331472,0.192501,60651.0,60650.0,0.22934791]
[1728518333373,0.192501,60651.0,60650.0,0.31184991]
[1728518334271,0.192501,60651.0,60650.0,0.28605879]
[1728518334478,0.192501,60651.0,60650.0,0.31184991]
[1728518337074,0.192501,60651.0,60650.0,0.22315915]
[1728518338483,0.192501,60651.0,60650.0,0.31197588]
[1728518341479,0.11,60651.0,60650.0,0.31197588]
[1728518343168,0.11,60651.0,60650.0,0.31197559]
[1728518344368,0.00903,60655.0,60654.0,0.082496]
[1728518344580,0.11903,60655.0,60654.0,0.30296959]
[1728518345474,0.12003,60655.0,60654.0,0.30296959]
[1728518345674,0.12103,60655.0,60654.0,0.30296959]
[1728518348374,0.12103,60655.0,60654.0,0.22047359]
[1728518348575,0.12103,60655.0,60654.0,0.11460756]
[1728518349278,0.12103,60655.0,60654.0,0.08881673]
[1728518353484,0.12103,60655.0,60651.0,0.082499]